bitfinex-derivatives/quotes_ETHF0:USTF0_20260104
["timestamp","ask_amount","ask_price","bid_price","bid_amount"]
[1767567876389,0.14297278,3150.4,3149.1,0.00267817]
[1767567876591,0.14297278,3150.4,3147.9,0.1589]
[1767567877577,0.14297278,3150.4,3147.9,0.16162052]
[1767567877771,0.14297278,3150.3,3147.9,0.16162052]
[1767567878179,0.14297278,3150.3,3148.0,0.1589]
[1767567878380,0.14297278,3150.3,3148.0,4.1684833]
[1767567878584,0.14297278,3150.3,3148.4,0.15887]
[1767567878887,0.14297278,3150.3,3148.5,4.31956958]
[1767567879185,0.14297278,3150.3,3148.5,0.15887]
[1767567884788,0.14297278,3150.3,3148.7,0.15886]
[1767567885088,0.14297278,3150.8,3148.8,6.0]
[1767567885289,0.14297278,3150.8,3149.0,0.15884]
[1767567886587,0.14297278,3150.8,3149.3,0.15883]
[1767567886893,6.51397278,3151.3,3149.5,0.15882]
[1767567887086,0.14297278,3151.3,3149.5,0.15882]
[1767567887393,0.14297278,3151.3,3149.6,0.15881]
[1767567888488,0.14297278,3151.3,3149.7,0.15881]
[1767567889894,0.14297278,3151.3,3149.8,0.15881]
[1767567890084,0.14297278,3151.3,3149.8,10.19684781]
[1767567890392,0.14297278,3151.8,3149.8,6.15881]
[1767567890592,0.14297278,3151.8,3149.8,0.15881]
[1767567891488,0.14297278,3151.8,3149.3,0.12497461]
[1767567891793,0.14297278,3151.8,3150.3,0.15878]
[1767567891992,0.14297278,3151.8,3150.4,0.15878]
[1767567894292,0.14297278,3151.8,3150.3,0.00231318]
[1767567895897,6.14297278,3151.8,3150.3,0.00231318]
[1767567896093,0.14297278,3151.7,3150.3,0.00231318]
[1767567896888,0.14297278,3151.5,3150.3,0.00231318]
[1767567897092,0.14297278,3151.5,3149.1,0.15884]
[1767567897494,0.14297278,3151.5,3149.2,4.0382668]
[1767567898096,0.14297278,3151.5,3149.3,0.15883]
[1767567899895,0.14297278,3151.5,3149.6,0.15881]
[1767567900098,0.14297278,3151.5,3149.7,0.15881]
[1767567900694,0.14297278,3151.5,3149.5,0.12756737]
[1767567900905,0.14297278,3151.5,3149.9,0.1588]
[1767567901691,0.14297278,3151.5,3150.0,0.1588]
[1767567901888,0.14035283,3152.0,3150.2,0.15879]
[1767567902790,0.14035283,3152.0,3150.6,0.15876]
[1767567902998,0.14035283,3152.5,3150.6,0.15876]
[1767567903194,0.14308204,3152.4,3150.6,0.15876]
[1767567905494,0.14035283,3152.3,3150.6,0.15876]
[1767567905998,0.14035283,3152.2,3150.6,0.15876]
[1767567906200,0.14035283,3152.2,3149.9,4.323]
[1767567906398,0.14035283,3152.2,3149.9,4.4818]
[1767567906701,0.14035283,3152.2,3150.0,4.15020368]
[1767567907100,0.14035283,3152.1,3149.9,0.1588]
[1767567907396,0.14035283,3151.8,3149.4,4.11719192]
[1767567907597,0.14035283,3151.8,3149.6,0.15882]
[1767567908102,0.14035283,3151.8,3149.7,4.24583876]
[1767567908402,0.14035283,3151.8,3149.3,3.95836192]
[1767567908701,0.14035283,3151.8,3149.5,4.03267845]
[1767567908908,0.14035283,3152.3,3149.9,0.1588]
[1767567909406,0.14035283,3152.2,3149.9,0.1588]
[1767567909795,0.14035283,3151.9,3149.7,3.95836192]
[1767567910000,0.14035283,3151.9,3149.4,8.44119192]
[1767567910395,0.14035283,3151.9,3149.6,4.19100705]
[1767567910604,0.14035283,3151.9,3149.5,4.19100705]
[1767567910797,0.14035283,3151.9,3149.4,4.11719192]
[1767567910999,0.14035283,3151.9,3149.5,4.15656683]
[1767567911498,0.29905283,3151.9,3149.5,4.15656683]
[1767567911696,0.14035283,3151.3,3149.4,3.95836192]
[1767567912006,0.14035283,3151.1,3149.2,0.00326026]
[1767567912401,0.14035283,3151.1,3149.2,6.29558393]
[1767567912707,0.14035283,3151.1,3149.3,4.23450457]
[1767567913007,0.14035283,3151.1,3149.3,8.19286649]
[1767567913206,0.14035283,3151.1,3149.3,12.51786649]
[1767567913394,0.14035283,3151.1,3149.3,12.67669649]
[1767567913598,0.14035283,3151.6,3149.4,0.13295155]
[1767567913797,0.14035283,3151.6,3149.4,4.09131347]
[1767567914601,0.14035283,3151.6,3149.5,3.95836192]
[1767567915102,0.14035283,3151.2,3149.5,3.95836192]
[1767567915305,0.14035283,3151.2,3149.2,0.00326026]
[1767567916094,0.14035283,3151.2,3149.3,4.26305225]
[1767567916503,0.14035283,3151.2,3149.3,8.22141417]
[1767567917102,0.14035283,3151.2,3149.4,3.95836192]
[1767567918907,0.14035283,3151.2,3149.3,8.29136192]
[1767567920014,0.14035283,3151.2,3149.3,3.95836192]
[1767567920213,0.14035283,3151.2,3149.2,0.16210026]
[1767567920407,6.14035283,3151.2,3149.2,0.00326026]
[1767567920622,0.14035283,3150.9,3149.2,0.00326026]
[1767567924410,0.14035283,3151.4,3149.3,10.07032587]
[1767567924614,0.14035283,3151.4,3149.3,4.20248373]
[1767567924914,0.14035283,3151.4,3149.5,0.15882]
[1767567925512,0.14035283,3151.3,3149.2,0.00326026]
[1767567932611,0.14035283,3151.3,3149.5,0.15882]
[1767567933219,0.14035283,3151.3,3149.5,4.11718192]
[1767567934521,0.14035283,3151.3,3149.6,3.95836192]
[1767567935113,0.14035283,3151.3,3149.5,4.11718192]
[1767567935509,0.14035283,3151.3,3149.6,3.95836192]
[1767567936519,0.14035283,3151.3,3149.6,4.11718192]
[1767567936817,0.14270688,3151.8,3149.7,4.03335786]
[1767567937023,0.14270688,3151.8,3150.0,0.1588]
[1767567937216,0.14270688,3151.8,3150.0,4.11716192]
[1767567937921,0.14270688,3151.8,3150.1,0.29088292]
[1767567938115,0.14270688,3151.8,3150.1,0.15879]
[1767567938914,0.14270688,3151.8,3150.2,4.339]
[1767567941427,0.14270688,3151.8,3150.1,0.15879]
[1767567943430,0.14270688,3151.7,3149.9,3.95836192]
[1767567943634,0.14270688,3151.5,3149.5,3.95836192]
[1767567943936,0.14270688,3151.2,3149.2,3.96162218]
[1767567944135,0.14270688,3151.1,3149.2,3.96162218]
[1767567944326,0.14270688,3150.9,3149.2,3.96162218]
[1767567944528,0.14270688,3150.9,3149.2,0.00326026]
[1767567944727,0.14270688,3151.6,3149.3,0.15883]
[1767567945032,0.14270688,3151.6,3149.5,0.15882]
[1767567945229,0.14270688,3151.6,3149.6,8.59049861]
[1767567945433,0.14270688,3151.6,3149.8,0.1588]
[1767567945634,0.14270688,3151.6,3149.9,3.95836192]
[1767567945834,0.14270688,3151.6,3150.0,0.1588]
[1767567950625,0.14270688,3151.6,3149.9,3.95836192]
[1767567950928,0.14270688,3151.6,3149.4,9.76221608]
[1767567950929,0.14270688,3151.5,3149.4,9.76221608]
[1767567951125,0.14270688,3151.5,3149.4,4.11719192]
[1767567951431,0.14270688,3151.5,3149.4,0.15883]
[1767567951841,0.14270688,3151.4,3149.4,0.15883]
[1767567952540,0.14270688,3151.3,3149.4,0.15883]
[1767567953442,0.14270688,3151.3,3149.2,0.00326026]
[1767567953443,0.14270688,3150.6,3149.2,0.00326026]
[1767567953938,0.14270688,3150.4,3148.2,8.31336192]
[1767567954140,0.14270688,3150.2,3148.2,8.31336192]
[1767567954336,0.14270688,3150.2,3148.2,4.355]
[1767567954938,0.14270688,3150.2,3148.2,4.35851775]
[1767567956043,0.14270688,3150.2,3148.3,0.15888]
[1767567960244,0.14270688,3150.2,3148.2,0.00351775]
[1767567963745,0.13774334,3150.0,3148.2,0.00351775]
[1767567963944,0.14064372,3150.0,3148.2,0.00351775]
[1767567968042,0.13774334,3149.8,3148.2,0.00351775]
[1767567968240,0.15882,3149.6,3148.2,0.00351775]
[1767567968443,4.51974334,3149.5,3148.2,0.00351775]
[1767567968650,0.13774334,3149.4,3148.2,0.00351775]
[1767567969952,6.13774334,3149.4,3148.2,0.00351775]
[1767567970156,0.13774334,3149.3,3148.2,0.00351775]
[1767567976346,0.15878,3150.3,3148.2,0.00351775]
[1767567976554,0.13774334,3149.8,3148.2,0.00351775]
[1767567978858,4.52074334,3149.8,3148.2,0.00351775]
[1767567979051,1.69074334,3149.8,3148.2,0.00351775]
[1767567979661,0.13774334,3149.8,3148.2,0.00351775]
[1767567982559,0.13774334,3149.8,3148.2,6.00351775]
[1767567982766,0.13774334,3149.8,3148.3,4.19041639]
[1767567982966,0.13774334,3150.2,3148.3,4.19041639]
[1767567983166,0.13774334,3150.2,3148.4,6.0]
[1767567983566,0.13774334,3150.2,3148.4,6.15887]
[1767567984368,0.13774334,3150.2,3148.5,4.10130516]
[1767567984571,0.13774334,3150.2,3148.5,4.26017516]
[1767567984964,0.13774334,3150.2,3148.6,0.15887]
[1767567985473,0.13774334,3150.6,3148.7,6.15886]
[1767567986065,0.13774334,3150.6,3148.9,0.15885]
[1767567987072,0.13774334,3150.6,3148.9,6.15885]
[1767567987273,0.13997689,3150.6,3148.9,6.15885]
[1767567991175,0.13997689,3150.6,3148.9,0.15885]
[1767567995277,0.13374388,3150.5,3148.2,4.52840775]
[1767567995782,0.13374388,3150.5,3148.3,4.0699858]
[1767567997076,0.13374388,3150.5,3148.6,0.15887]
[1767567997278,0.13374388,3150.5,3148.6,0.2855483]
[1767568000094,0.13374388,3150.5,3148.8,0.15886]
[1767568001293,0.13374388,3150.5,3148.6,3.95836192]
[1767568001494,0.13374388,3150.5,3148.3,0.15888]
[1767568002289,0.13374388,3150.3,3148.2,0.00351775]
[1767568002499,0.13374388,3150.1,3148.2,0.00351775]
[1767568004587,0.29253388,3150.1,3148.2,0.00351775]
[1767568004799,0.13374388,3149.9,3148.2,0.00351775]
[1767568005796,0.13374388,3149.7,3148.2,0.00351775]
[1767568008498,0.13374388,3149.7,3148.2,6.00351775]
[1767568009198,0.13374388,3150.2,3148.3,4.30538482]
[1767568009395,0.13374388,3150.2,3148.5,0.28513135]
[1767568009600,0.13374388,3150.2,3148.5,0.12626135]
[1767568009799,0.00223355,3150.6,3148.7,0.1285017]
[1767568009800,0.13597743,3150.6,3148.7,0.1285017]
[1767568010004,0.13597743,3150.6,3148.8,0.1285017]
[1767568010310,0.13597743,3150.6,3148.8,4.22764438]
[1767568011411,0.13597743,3150.6,3148.8,4.38650438]
[1767568017015,0.13597743,3150.6,3148.9,4.377]
[1767568017215,0.13597743,3150.6,3149.0,4.377]
[1767568018308,0.00223355,3150.6,3149.2,0.15884]
[1767568020417,7.553,3151.6,3149.2,0.15884]
[1767568020418,3.31280051,3151.6,3149.4,0.1296501]
[1767568020719,3.31280051,3151.6,3149.8,0.15881]
[1767568020913,3.31280051,3151.6,3149.9,4.381]
[1767568021716,0.00250229,3151.6,3150.0,4.10612077]
[1767568023213,0.00250229,3151.6,3150.1,0.15879]
[1767568023614,0.00250229,3151.6,3150.2,4.0908693]
[1767568024313,0.13680051,3152.5,3150.6,0.15876]
[1767568024519,0.13680051,3152.5,3150.7,4.51316012]
[1767568024716,0.13680051,3152.5,3150.8,0.15876]
[1767568025322,0.13921609,3152.5,3150.9,4.383]
[1767568027213,0.13921609,3152.5,3150.8,0.16272807]
[1767568027414,0.13921609,3152.5,3150.9,4.382]
[1767568028826,0.13921609,3152.5,3151.0,0.15874]
[1767568029225,0.00241558,3152.5,3151.0,0.15874]
[1767568031524,0.00241558,3152.5,3151.2,0.15874]
[1767568031710,0.00241558,3152.5,3150.8,0.00397807]
[1767568031711,0.13921609,3152.5,3150.8,0.00397807]
[1767568031915,0.13921609,3152.5,3150.8,4.38497807]
[1767568032117,6.13921609,3152.5,3150.8,0.00397807]
[1767568032318,0.13680051,3152.4,3150.8,0.00397807]
[1767568034620,0.13680051,3152.2,3150.8,0.00397807]
[1767568035718,0.13680051,3152.0,3150.8,0.00397807]
[1767568035924,0.13680051,3152.0,3149.8,0.1588]
[1767568036317,0.13680051,3152.0,3148.9,0.1295643]
[1767568036318,0.13680051,3151.9,3148.9,0.1295643]
[1767568036522,0.13680051,3151.9,3149.0,4.5095643]
[1767568036819,0.13680051,3151.9,3149.0,8.582658]
[1767568037025,0.13680051,3151.8,3149.4,0.15882]
[1767568037228,0.13680051,3151.7,3149.4,0.15882]
[1767568037624,0.13680051,3151.3,3149.0,0.00378888]
[1767568038214,0.13680051,3151.1,3149.0,0.00378888]
[1767568038614,0.13680051,3151.0,3149.0,0.00378888]
[1767568039020,0.13680051,3150.9,3149.0,0.00378888]
[1767568043332,0.13680051,3150.9,3149.1,0.15884]
[1767568043948,0.13680051,3150.9,3149.0,0.00378888]
[1767568045330,0.13680051,3150.6,3149.0,0.00378888]
[1767568045524,0.13680051,3150.5,3149.0,0.00378888]
[1767568051130,0.14272449,3150.3,3148.0,0.1589]
[1767568051527,0.14272449,3150.2,3148.0,0.1589]
[1767568051727,0.15878,3150.3,3148.0,0.1589]
[1767568051728,0.14272449,3150.1,3148.0,0.1589]
[1767568052131,0.1460702,3150.1,3148.0,0.16124111]
[1767568053135,4.374,3150.0,3148.0,0.16124111]
[1767568053337,0.14272449,3149.9,3148.0,0.16124111]
[1767568053633,0.14272449,3149.7,3148.0,0.00234111]
[1767568054224,0.14272449,3149.5,3147.0,0.15895]
[1767568054632,0.14272449,3149.3,3147.0,0.15895]
[1767568054937,0.14272449,3149.3,3147.1,0.15894]
[1767568055136,0.14272449,3149.3,3147.5,0.15892]
[1767568055338,0.14272449,3149.3,3147.5,0.16242638]
[1767568055838,0.14272449,3149.3,3147.6,0.15892]
[1767568056538,3.176,3149.7,3147.7,4.19917581]
[1767568057038,3.176,3149.7,3148.0,0.1589]
[1767568057230,0.14484534,3149.6,3147.5,0.16242638]
[1767568057432,0.14484534,3149.6,3147.5,0.00350638]
[1767568057628,0.14484534,3149.1,3147.5,0.00350638]
[1767568057833,0.30369534,3148.9,3146.2,0.2920616]
[1767568058141,0.14484534,3148.6,3146.3,4.09460213]
[1767568058329,0.14484534,3148.4,3146.2,0.15899]
[1767568058932,0.14484534,3148.4,3146.2,0.1615559]
[1767568059132,0.14484534,3148.4,3146.3,4.09460213]
[1767568059342,0.14484534,3148.4,3146.2,0.1615559]
[1767568060031,0.14484534,3148.4,3146.3,4.08618425]
[1767568060231,0.14484534,3148.4,3146.6,0.15897]
[1767568061342,0.14484534,3148.4,3146.8,0.15896]
[1767568062026,0.14484534,3148.4,3146.2,0.0025659]
[1767568062425,0.30372534,3148.4,3146.2,0.0025659]
[1767568062633,0.14484534,3148.3,3146.2,0.0025659]
[1767568063232,0.14484534,3148.2,3146.2,0.0025659]
[1767568063837,0.14484534,3148.2,3146.5,0.15897]
[1767568065141,0.14484534,3148.2,3146.2,0.0025659]
[1767568066742,0.14484534,3148.2,3146.5,0.15897]
[1767568070633,0.14484534,3148.2,3146.7,0.15896]
[1767568072345,0.14484534,3148.7,3146.9,0.15895]
[1767568074742,0.14484534,3148.7,3146.2,0.29421945]
[1767568074947,0.14484534,3148.7,3146.3,2.572]
[1767568075138,0.14484534,3148.7,3146.4,4.09934418]
[1767568075334,0.14484534,3148.7,3146.3,6.67134418]
[1767568075540,0.14484534,3148.7,3146.3,2.572]
[1767568075740,0.14484534,3148.7,3146.4,4.14264553]
[1767568076343,0.14484534,3148.7,3146.4,4.30161553]
[1767568076539,0.14484534,3148.2,3146.2,0.0025659]
[1767568076744,0.14484534,3148.0,3146.2,0.0025659]
[1767568078340,0.14165164,3147.8,3146.2,0.0025659]
[1767568078541,0.14455839,3147.8,3146.2,0.0025659]
[1767568078942,0.14455839,3147.8,3146.2,0.1615559]
[1767568080049,0.95743015,3147.7,3146.2,0.1615559]
[1767568080252,0.00290675,3147.8,3146.4,0.15897]
[1767568080648,1.83375953,3148.9,3146.7,0.13223452]
[1767568080951,2.83434563,3149.5,3146.6,1.10914259]
[1767568080952,0.13518913,3148.7,3146.9,0.15895]
[1767568081152,1.09342364,3148.6,3147.1,0.15894]
[1767568081347,0.13518913,3149.5,3147.3,0.15893]
[1767568081652,0.13518913,3149.3,3147.4,4.12168268]
[1767568081953,0.13518913,3149.3,3147.3,0.15893]
[1767568081954,0.13518913,3149.1,3147.3,0.15893]
[1767568082145,0.95864725,3149.0,3147.3,0.15893]
[1767568082945,0.95864725,3149.0,3147.4,4.37418276]
[1767568083145,0.00400772,3149.3,3147.5,0.29108135]
[1767568083340,0.00400772,3149.3,3147.5,6.29108135]
[1767568083545,0.13919685,3149.3,3147.6,8.57399022]
[1767568083744,0.13919685,3149.3,3147.6,14.57399022]
[1767568084747,0.13919685,3149.3,3147.6,14.73291022]
[1767568085148,0.13919685,3149.3,3147.6,0.15892]
[1767568085342,0.13518913,3149.1,3147.4,4.388]
[1767568085542,0.13518913,3149.1,3147.3,4.389]
[1767568085746,0.13518913,3149.1,3147.1,4.17801909]
[1767568085956,0.13518913,3149.1,3147.2,4.389]
[1767568086143,0.13518913,3149.1,3147.2,4.54794]
[1767568086349,0.13518913,3149.1,3147.3,0.15893]
[1767568088351,0.13518913,3149.1,3147.4,4.17505426]
[1767568088551,0.13518913,3149.1,3147.6,0.15892]
[1767568088751,0.13518913,3149.1,3147.7,0.15891]
[1767568088957,0.00400772,3149.3,3147.8,0.15891]
[1767568090153,0.00400772,3149.3,3148.1,0.15889]
[1767568090756,0.13919685,3149.3,3147.5,0.15892]
[1767568091155,0.13919685,3149.3,3147.6,4.1720084]
[1767568091357,0.13919685,3149.3,3147.5,0.15892]
[1767568094265,0.13919685,3149.3,3147.4,4.389]
[1767568094266,0.13518913,3149.2,3147.4,4.389]
[1767568095860,0.13518913,3149.0,3146.8,0.15896]
[1767568096556,0.13518913,3148.9,3146.8,0.15896]
[1767568096964,0.13518913,3148.8,3146.8,0.15896]
[1767568102466,0.13518913,3148.7,3146.2,0.0025659]
[1767568102663,0.29405913,3148.5,3146.2,0.0025659]
[1767568102870,0.13518913,3148.4,3146.2,0.0025659]
[1767568104470,0.13518913,3148.1,3146.2,0.0025659]
[1767568104665,0.13518913,3148.0,3146.2,0.0025659]
[1767568107077,0.13518913,3148.0,3146.2,0.1615559]
[1767568107277,0.13518913,3148.0,3146.2,0.29418826]
[1767568107576,0.13518913,3148.0,3146.2,0.1615559]
[1767568108368,0.13518913,3148.0,3146.2,0.0025659]
[1767568112976,0.29408913,3148.0,3146.2,0.0025659]
[1767568113176,0.29592344,3147.8,3146.2,0.0025659]
[1767568113482,0.13701344,3147.7,3146.2,0.0025659]
[1767568114481,0.13701344,3147.5,3146.2,0.0025659]
[1767568114982,6.29593344,3147.5,3146.2,0.0025659]
[1767568115280,0.13701344,3147.3,3145.1,1.41007074]
[1767568115683,0.14125261,3147.1,3145.2,4.14639239]
[1767568115887,0.14125261,3147.0,3145.1,1.41007074]
[1767568116074,0.14125261,3147.0,3145.1,1.41298121]
[1767568116075,0.14485835,3147.0,3145.1,1.41298121]
[1767568116270,0.14485835,3147.0,3145.3,0.13572963]
[1767568118085,0.00360574,3147.0,3145.5,0.13657364]
[1767568118279,0.00360574,3147.0,3145.5,0.29559364]
[1767568118481,0.00360574,3147.0,3145.6,10.1766183]
[1767568118679,0.00360574,3147.0,3145.7,0.13733734]
[1767568119082,0.00360574,3147.0,3145.8,4.04004466]
[1767568119280,0.00360574,3147.0,3145.5,0.15902]
[1767568120078,0.00360574,3147.0,3145.1,5.94031855]
[1767568120079,0.00360574,3147.0,3145.6,0.15902]
[1767568120284,0.00360574,3147.0,3145.6,4.3773396]
[1767568120486,0.00360574,3147.0,3145.7,0.13733734]
[1767568120682,0.00360574,3147.0,3145.7,4.17545539]
[1767568122281,0.14125261,3147.6,3145.8,6.0]
[1767568122479,0.14125261,3147.6,3145.8,6.13807084]
[1767568122680,0.14125261,3148.0,3145.9,4.2206808]
[1767568123382,0.14536785,3148.0,3145.9,4.3796808]
[1767568123589,0.14536785,3148.0,3146.0,4.53107084]
[1767568123786,0.14536785,3148.0,3146.1,0.13807084]
[1767568123987,0.14536785,3148.0,3146.1,4.29436271]
[1767568125086,0.14536785,3148.0,3146.1,4.45335271]
[1767568125482,0.14536785,3148.0,3146.2,0.15899]
[1767568125889,0.00411524,3148.0,3146.4,0.29685078]
[1767568126390,0.00411524,3148.0,3146.5,10.34395206]
[1767568126591,0.00411524,3148.0,3146.5,4.34395206]
[1767568126789,0.00411524,3148.0,3146.5,0.29684078]
[1767568131396,0.14125261,3148.5,3146.6,4.33290915]
[1767568131587,0.14125261,3148.5,3146.7,0.13696528]
[1767568131786,0.14125261,3148.5,3146.8,4.397]
[1767568131986,0.14125261,3148.5,3146.8,8.59294387]
[1767568132492,0.14404999,3148.5,3146.8,8.59294387]
[1767568132996,0.14404999,3148.5,3146.8,8.75189387]
[1767568134099,0.14404999,3148.5,3146.8,14.8885069]
[1767568135599,0.14404999,3148.5,3146.9,0.29566912]
[1767568135795,0.14404999,3148.5,3147.0,0.15895]
[1767568136006,0.14404999,3148.5,3147.0,4.37093212]
[1767568136510,0.00279738,3148.5,3147.0,4.37093212]
[1767568137304,0.00279738,3148.5,3147.1,0.29539454]
[1767568137505,0.00279738,3148.5,3147.1,6.29539454]
[1767568137710,0.00279738,3148.5,3147.2,4.16640973]
[1767568139311,0.00279738,3148.5,3147.2,4.32534973]
[1767568139812,0.14073527,3149.4,3147.6,0.13623684]
[1767568140013,0.14073527,3149.4,3147.7,4.405]
[1767568140313,0.14073527,3149.4,3147.7,8.58518055]
[1767568140709,0.14367957,3149.4,3147.7,8.58918665]
[1767568146310,0.14367957,3149.4,3147.7,8.74809665]
[1767568151916,0.14367957,3149.4,3147.7,0.1629161]
[1767568152215,0.14367957,3149.4,3147.8,4.42]
[1767568160518,0.14367957,3149.4,3147.9,0.1589]
[1767568161518,0.0029443,3149.4,3147.9,0.13252198]
[1767568162320,0.14802707,3149.4,3148.2,0.15889]
[1767568162518,0.14802707,3149.4,3147.7,0.0040061]
[1767568166832,0.14508277,3149.2,3147.7,0.0040061]
[1767568172231,0.13426985,3149.1,3147.7,0.0040061]
[1767568172538,0.13426985,3148.9,3146.9,0.15895]
[1767568172834,0.13426985,3148.9,3147.0,0.15895]
[1767568173440,0.13426985,3148.9,3147.0,0.16264535]
[1767568177435,0.13320822,3148.7,3147.0,0.00369535]
[1767568180537,0.13320822,3148.5,3147.0,0.00369535]
[1767568180939,0.13320822,3148.5,3146.4,0.15898]
[1767568181137,0.13320822,3148.2,3146.0,3.527]
[1767568181435,0.13320822,3148.0,3146.0,3.527]
[1767568181938,0.13320822,3148.0,3146.0,3.52947685]
[1767568182734,0.13320822,3148.0,3146.1,0.15899]
[1767568186543,0.13320822,3148.0,3146.6,0.70548834]
[1767568187545,0.13320822,3148.0,3146.9,0.70548834]
[1767568189445,0.13320822,3148.0,3146.6,0.70548834]
[1767568190351,0.13320822,3147.8,3146.3,0.70548834]
[1767568192752,0.13320822,3147.8,3146.6,0.70548834]
[1767568193251,0.13320822,3147.8,3146.3,0.70548834]
[1767568193451,0.13320822,3147.8,3146.2,0.70548834]
[1767568194546,0.13320822,3147.5,3146.0,0.70796519]
[1767568195350,0.13320822,3147.5,3146.4,0.70548834]
[1767568195550,0.13320822,3147.5,3146.0,0.70796519]
[1767568196253,0.13320822,3147.5,3146.3,0.70548834]
[1767568198456,0.13320822,3148.0,3146.6,0.70548834]
[1767568199055,0.13320822,3147.7,3146.3,0.70548834]
[1767568200467,0.13320822,3147.7,3146.6,0.70548834]
[1767568200662,0.13392272,3148.1,3146.9,0.70548834]
[1767568201273,0.13392272,3148.1,3146.8,0.70548834]
[1767568201575,0.13392272,3148.1,3147.1,0.70548834]
[1767568201765,4.366,3148.4,3147.1,0.70548834]
[1767568201766,0.13392272,3148.5,3147.1,0.70548834]
[1767568201966,4.49992272,3148.5,3147.1,0.70548834]
[1767568202170,4.49992272,3148.5,3147.4,0.70548834]
[1767568202369,4.49992272,3148.5,3147.5,0.70548834]
[1767568202577,0.13392272,3148.9,3147.5,0.70548834]
[1767568204463,0.13392272,3148.9,3147.8,0.70548834]
[1767568206076,2.463,3149.2,3148.1,0.70548834]
[1767568206271,0.13392272,3149.3,3148.1,0.70548834]
[1767568207171,0.13392272,3149.3,3147.8,0.70548834]
[1767568207474,0.70548834,3149.2,3147.8,0.70548834]
[1767568207670,0.13392272,3149.1,3147.8,0.70548834]
[1767568207866,0.13392272,3148.8,3147.2,0.70548834]
[1767568208073,0.13392272,3148.5,3146.9,0.70548834]
[1767568208275,0.13392272,3148.5,3146.4,0.13100286]
[1767568208476,0.13392272,3148.5,3147.1,0.70548834]
[1767568208671,0.13392272,3148.5,3147.5,0.70548834]
[1767568210676,0.13392272,3148.5,3147.2,0.70548834]
[1767568210881,0.13392272,3148.0,3146.4,0.70548834]
[1767568211479,0.13392272,3147.7,3146.2,0.70548834]
[1767568212579,0.13392272,3147.7,3146.1,0.70548834]
[1767568213478,0.13392272,3147.7,3146.4,0.70548834]
[1767568213985,0.13392272,3147.6,3146.1,0.70548834]
[1767568214187,0.13392272,3147.6,3146.0,0.70796519]
[1767568214386,0.13392272,3147.6,3146.0,0.00247685]
[1767568216288,0.13392272,3147.6,3146.2,0.70548834]
[1767568216786,0.15891,3147.8,3146.5,0.70548834]
[1767568217782,0.13392272,3147.7,3146.5,0.70548834]
[1767568217983,0.13392272,3147.7,3146.2,0.70548834]
[1767568218688,0.13392272,3147.7,3146.0,0.00247685]
[1767568218987,0.13392272,3148.2,3146.0,0.13347971]
[1767568219287,2.292,3148.1,3146.0,0.13347971]
[1767568219585,0.15888,3148.4,3146.2,0.13100286]
[1767568219976,0.15888,3148.4,3146.4,0.13100286]
[1767568220181,0.13392272,3148.3,3146.4,0.13100286]
[1767568221990,0.13392272,3148.3,3146.1,0.15899]
[1767568222189,0.13392272,3148.3,3146.1,6.15899]
[1767568222390,0.13392272,3148.3,3146.2,4.05551617]
[1767568222884,0.13392272,3148.3,3146.1,0.15899]
[1767568223287,0.13392272,3148.3,3146.3,0.13100286]
[1767568223488,0.13392272,3148.3,3146.4,0.13100286]
[1767568223690,0.13392272,3148.3,3146.5,0.13100286]
[1767568230086,0.13392272,3148.3,3146.5,0.28997286]
[1767568232801,4.49990056,3148.7,3146.8,0.13553164]
[1767568233505,4.49990056,3148.7,3146.8,0.29449164]
[1767568233889,0.13590056,3148.7,3146.9,0.15895]
[1767568234290,0.13590056,3148.7,3146.9,0.29448164]
[1767568235392,0.13590056,3148.7,3147.1,0.15894]
[1767568235597,0.13590056,3148.7,3147.1,0.29439915]
[1767568237500,0.13590056,3148.7,3147.1,0.15894]
[1767568244305,0.13590056,3148.7,3147.2,0.15893]
[1767568250511,0.13590056,3148.7,3147.3,4.20915858]
[1767568250808,0.1385615,3149.1,3147.4,0.15893]
[1767568252213,0.1385615,3149.1,3147.5,0.15892]
[1767568265317,0.0029443,3149.4,3148.5,0.70500966]
[1767568265622,8.985e-05,3149.4,3148.5,0.0036935]
[1767568268723,0.13146411,3149.4,3148.5,0.0036935]
[1767568268922,6.13146411,3149.4,3148.5,0.0036935]
[1767568269124,0.13137426,3149.3,3148.5,0.0036935]
[1767568274221,0.13137426,3149.2,3147.1,5.64502416]
[1767568274724,0.13137426,3149.1,3146.9,0.15895]
[1767568275128,0.13137426,3149.1,3147.0,4.11081836]
[1767568275422,0.13137426,3148.7,3147.0,0.0026804]
[1767568279124,0.13137426,3148.6,3147.0,0.0026804]
[1767568279329,0.13137426,3148.4,3147.0,0.0026804]
[1767568280824,4.36,3148.5,3147.0,0.0026804]
[1767568280825,0.13137426,3148.2,3147.0,0.0026804]
[1767568282728,0.13137426,3148.1,3147.0,0.0026804]
[1767568283634,2.698,3148.4,3147.0,6.0026804]
[1767568284640,2.698,3148.4,3147.0,0.0026804]
[1767568284641,0.13137426,3148.4,3147.0,0.0026804]
[1767568290228,0.13137426,3148.4,3147.1,6.0]
[1767568290432,0.13765394,3148.8,3147.1,6.0]
[1767568290632,0.13765394,3148.8,3147.0,0.0026804]
[1767568290842,0.13765394,3148.8,3147.0,6.0026804]
[1767568291835,0.13765394,3148.8,3147.1,4.06051853]
[1767568292041,0.13765394,3148.8,3147.1,4.35461826]
[1767568292840,0.13765394,3148.8,3147.2,0.15894]
[1767568293036,0.13765394,3149.2,3147.4,0.2933138]
[1767568294927,0.13765394,3149.2,3147.5,0.13446297]
[1767568295134,8.985e-05,3149.4,3147.6,0.13446297]
[1767568295535,8.985e-05,3149.4,3147.7,4.07627951]
[1767568296343,8.985e-05,3149.4,3147.7,4.23518951]
[1767568297047,8.985e-05,3149.4,3147.8,6.0]
[1767568298141,8.985e-05,3149.4,3147.8,6.1589]
[1767568298347,8.985e-05,3149.4,3147.9,4.25141118]
[1767568298535,8.985e-05,3149.4,3148.8,0.70447139]
[1767568299941,8.985e-05,3149.4,3148.4,0.70447139]
[1767568302636,8.985e-05,3149.4,3148.7,0.70447139]
[1767568305251,3.97636103,3152.0,3148.8,6.0]
[1767568305252,0.14348079,3150.1,3148.8,6.0]
[1767568305446,0.14348079,3150.1,3148.9,0.70447139]
[1767568306242,0.14677414,3150.1,3148.9,0.70447139]
[1767568308444,0.14677414,3150.1,3148.8,0.70447139]
[1767568308648,0.14677414,3150.1,3148.6,0.70447139]
[1767568311348,0.14677414,3150.1,3148.5,0.15887]
[1767568311948,0.14677414,3150.1,3148.4,0.70447139]
[1767568311949,0.14348079,3149.9,3148.4,0.70447139]
[1767568312153,0.14348079,3149.9,3148.3,0.70447139]
[1767568316863,0.14348079,3149.9,3148.6,0.70447139]
[1767568321676,0.00329335,3150.1,3148.9,0.70447139]
[1767568324077,0.13780917,3149.7,3148.4,0.15888]
[1767568327572,0.13780917,3149.7,3148.1,0.70447139]